{"text_format":"1","workbook":"xlsx","n_sheets":2,"sheets":["Лист1","Лист2"],"not_rendered":{"charts":0,"images":3,"macros":1,"external_links":0,"defined_names":0,"comments":0,"pivot_tables":0},"unopened":[],"bounds":{"document_bytes":16777216,"sheet_cells":100000,"rows_first":2000,"rows_last":500,"rows_between":2000,"halvings":0,"cell_chars":16384,"cell_head_chars":4096},"cells_cut":0,"cells_raw":0,"read":"whole","date_system":"1900"}

{"sheet":"Лист1","index":0,"n_rows":127,"n_cols":11,"rows_kept":127,"cut":false,"hidden":false,"merged":[[44,2,45,3],[46,2,47,3],[115,0,115,8],[117,0,117,8],[116,0,116,8],[105,0,105,8],[113,0,113,8],[112,0,112,8],[110,0,110,8],[55,0,55,1],[72,1,72,7],[81,1,81,7],[20,0,21,8],[23,0,30,8],[38,2,41,3],[35,4,35,6],[42,2,43,3],[126,5,126,8],[121,0,121,3],[124,0,124,3],[123,0,123,3],[123,5,123,8],[122,0,122,3],[122,5,122,8],[125,0,125,3],[126,0,126,3],[121,5,121,8],[125,5,125,8],[124,5,124,8],[10,0,11,8],[13,6,13,8],[46,4,47,8],[48,4,49,8],[13,0,13,5],[15,0,15,5],[17,0,17,5],[48,2,49,3],[38,4,41,8],[42,4,43,8],[44,4,45,8],[14,0,14,8],[16,0,16,8],[18,0,18,8],[17,6,17,8],[15,6,15,8],[65,1,65,7],[66,1,66,7],[79,1,79,7],[93,0,93,1],[94,0,94,1],[73,1,73,7],[74,1,74,7],[75,1,75,7],[76,1,76,7],[88,0,88,7],[94,2,94,4],[82,1,82,7],[83,1,83,7],[84,1,84,7],[85,1,85,7],[86,1,86,7],[118,0,119,3],[96,7,96,8],[32,0,33,8],[57,0,58,8],[52,0,53,4],[90,0,91,4],[96,0,102,3],[96,4,96,5],[50,0,50,8],[38,0,41,1],[42,0,49,1],[77,1,77,7],[78,1,78,7],[80,1,80,7],[71,1,71,7],[67,1,67,7],[111,0,111,8],[107,3,107,8],[114,0,114,2],[114,3,114,8],[60,4,60,6],[104,3,104,8],[104,0,104,2],[107,0,107,2],[109,3,109,8],[109,0,109,2],[68,1,68,7],[69,1,69,7],[70,1,70,7],[62,1,62,7],[63,1,63,7],[64,1,64,7]]}
[]
[]
[]
[]
[]
[]
[]
[]
[]
[]
["Карта заказа\nМикроконтроллерное устройство защиты МКЗП-МИКРО 2.0"]
[]
[]
["Заполните организацию (наименование, ИНН/КПП):"]
[]
["Напишите название и местонахождение объекта:"]
[]
["Укажите ФИО, телефон/почта контактного лица:"]
[]
[]
["Применяется два варианта заполнения карты заказа на устройства серии                          МКЗП-МИКРО 2.0, можно заполнить только один из вариантов:"]
[]
[]
["1.\tПрямой выбор модификации устройства серии МКЗП-МИКРО 2.0. Если уже знакомы с мофицикациями МКЗП-МИКРО 2.0, можно сразу выбрать конкретное устройство относительно наличия количества дискретных входов/выходов, подпитки от токовых цепей, цепей дешунтирования, наличия дуговой защиты. \n2.\tПодбор устройства относительно требуемого функционала. Если необходимо подобрать устройство относительно требований по функционалу релейной защиты и автоматики "]
[]
[]
[]
[]
[]
[]
[]
[]
["Вариант 1.                                                                                                                                 Прямой выбор модификации устройства серии МКЗП-МИКРО 2.0:"]
[]
[]
["Тип защищаемой ячейки:",null,null,"ОЛ","Количество:",null,null,null,"шт."]
[]
["Определите модификация устройства:"]
["Наименование серии",null,"Тип исполнения по количеству дискретных входов/выходов",null,"Тип исполнения по наличию встроенной подпитки от токовых цепей, цепей дешунтирования, встроенной дуговой защит"]
[]
[]
[]
["МКЗП-МИКРО 2.0",null,"1 (4/4)",null,"ДШ - подпитка от токовых цепей и цепи дешунтирования"]
[]
[null,null,"2 (11/8)",null,"ДЗ – встроенная дуговая защита"]
[]
[null,null,"3 (18/12)",null,"Т – подпитка от токовых цепей"]
[]
[null,null,"4 (25/16)"]
[]
["* подбор необходимро осуществлять, начиная с выбора количества дискретных входов/выходов"]
[]
["Подтвердите итоговую модификацию:"]
[]
[null,null,null,"выбрать",null,"выбрать",null,"выбрать"]
["МКЗП-МИКРО 2.0",null,"-",1,"-",null,"-"]
[]
["Вариант 2.                                                                                                                        Подбор устройства относительно требуемого функционала:"]
[]
[]
["Тип защищаемой ячейки:",null,null,"ОЛ","Количество:",null,null,null,"шт."]
[null,null,null,null,null,null,null,null,null,"Вх","Вых"]
[1,"Максимальная токовая защита (ANSI 50, 51,67)",null,null,null,null,null,null,false,{"$f":"IF($I$63=TRUE, 0,0)","v":0}]
[2,"Защита от ОЗЗ (51G, 59N, 67N)",null,null,null,null,null,null,false,{"$f":"IF($I$64=TRUE, 0,0)","v":0}]
[3,"Защита минимального напряжения (27N)",null,null,null,null,null,null,false,{"$f":"IF($I$65=TRUE, 0,0)","v":0}]
[4,"Защита от повышенного напряжения (59)",null,null,null,null,null,null,false,{"$f":"IF($I$66=TRUE, 0,0)","v":0}]
[5,"Защита от несимметрии напряжений (47)",null,null,null,null,null,null,false,{"$f":"IF($I$67=TRUE, 0,0)","v":0}]
[6,"Защита минимального тока (ANSI 37)",null,null,null,null,null,null,false,{"$f":"IF($I$68=TRUE, 0,0)","v":0}]
[7,"Защита от несимметрии фазных токов (ANSI 46)",null,null,null,null,null,null,false,{"$f":"IF($I$69=TRUE, 0,0)","v":0}]
[8,"Защита от пульсаций токов нагрузки",null,null,null,null,null,null,false,{"$f":"IF($I$70=TRUE, 0,0)","v":0}]
[9,"Тепловая защита ЭД (ANSI 48, 49M, 51LR,66)",null,null,null,null,null,null,false,{"$f":"IF($I$71=TRUE, 0,0)","v":0}]
[10,"Контроль исправности цепей напряжения (60)",null,null,null,null,null,null,false,{"$f":"IF($I$72=TRUE, 1,0)","v":0}]
[11,"Логическая защита шин",null,null,null,null,null,null,false,{"$f":"IF(AND($I$73=TRUE,D61=\"ВВ\"),2,IF(AND($I$73=TRUE,D61=\"СВ\"),2,0))","v":0},{"$f":"IF(AND($I$73=TRUE,D61=\"ВВ\"),0,IF(AND($I$73=TRUE,D61=\"СВ\"),2,IF(AND($I$73=TRUE,D61=\"ОЛ\"),1,0)))","v":0}]
[12,"Дуговая защита",null,null,null,null,null,null,false,{"$f":"IF(AND($I$74=TRUE,$D$61=\"ВВ\"),2,IF(AND($I$74=TRUE,$D$61=\"СВ\"),3,IF(AND($I$74=TRUE,$D$61=\"ОЛ\"),1,0)))","v":0},{"$f":"IF(AND($I$74=TRUE,$D$61=\"ВВ\"),1,IF(AND($I$74=TRUE,$D$61=\"СВ\"),2,IF(AND($I$74=TRUE,$D$61=\"ОЛ\"),1,0)))","v":0}]
[13,"Защита максимальной мощности (32P, 32Q)",null,null,null,null,null,null,false,{"$f":"IF($I$75=TRUE, 0,0)","v":0}]
[14,"Защита от потери питания",null,null,null,null,null,null,false,{"$f":"IF($I$76=TRUE, 0,0)","v":0}]
[15,"Защита от повышения (понижения) частоты (81H, 81L)",null,null,null,null,null,null,false,{"$f":"IF($I$77=TRUE, 0,0)","v":0}]
[16,"Токовая защита обратной последовательности",null,null,null,null,null,null,false,{"$f":"IF($I$63=TRUE, 0,0)","v":0}]
[17,"АВР",null,null,null,null,null,null,false,{"$f":"IF(AND($I$79=TRUE,D61=\"ВВ\"),3,IF(AND($I$79=TRUE,D61=\"СВ\"),1,0))","v":0},{"$f":"IF(AND($I$79=TRUE,D61=\"ВВ\"),2,IF(AND($I$79=TRUE,D61=\"СВ\"),0,0))","v":0}]
[18,"ВНР",null,null,null,null,null,null,false,{"$f":"IF(AND($I$80=TRUE,D61=\"ВВ\"),2,IF(AND($I$80=TRUE,D61=\"СВ\"),1,0))","v":0},{"$f":"IF(AND($I$80=TRUE,D61=\"ВВ\"),1,IF(AND($I$80=TRUE,D61=\"СВ\"),0,0))","v":0}]
[19,"АПВ",null,null,null,null,null,null,false,{"$f":"IF(AND($I$81=TRUE,D61=\"ОЛ\"),1,0)","v":0}]
[20,"АЧР/ЧАПВ",null,null,null,null,null,null,false,{"$f":"IF(AND($I$82=TRUE,D61=\"ОЛ\"),2,0)","v":0}]
[21,"УРОВ (50BF)",null,null,null,null,null,null,false,{"$f":"IF(AND($I$83=TRUE,D61=\"ВВ\"),1,IF(AND($I$83=TRUE,D61=\"СВ\"),2,IF(AND($I$83=TRUE,D61=\"ОЛ\"),1,0)))","v":0},{"$f":"IF(AND($I$83=TRUE,$D$61=\"ВВ\"),0,IF(AND($I$83=TRUE,$D$61=\"СВ\"),2,IF(AND($I$83=TRUE,$D$61=\"ОЛ\"),1,0)))","v":0}]
[22,"Отключение от внешних защит",null,null,null,null,null,null,false,{"$f":"IF($I$84=TRUE, 1,0)","v":0}]
[23,"Автоматика управления выключателем",null,null,null,null,null,null,false,{"$f":"IF($I$85=TRUE, 1,0)","v":0}]
[24,"Подпитка от токовых цепей",null,null,null,null,null,null,null,{"$f":"IF(I87=TRUE,0, IF($I$86=TRUE, 1,0))","v":0}]
[25,"Дешунтирование",null,null,null,null,null,null,false,{"$f":"IF($I$87=TRUE, 1,0)","v":0}]
[26,"Необходимое количество дополнительных дискретных входов"]
["очистить всё"]
[]
["Подтвердите итоговую модификацию:",null,null,null,null,null,null,null,null,{"$f":"SUM(J63:J85)+I88+4","v":4},{"$f":"SUM(K63:K88)+4","v":4}]
[]
[]
["МКЗП-МИКРО 2.0",null,"-",{"$f":"IF(J91>25,\"ОШИБКА\",IF(J91>18,4,IF(J91>11,3,IF(J91>4,2,IF(I74=TRUE,2,1)))))","v":1},"-",{"$f":"IF(J91>25,\"ОШИБКА\",IF(AND(D94=3,I74=TRUE,J86=0,J87=1),\"ДЗ\",IF(AND(D94=3,I74=TRUE,J86=1,J87=0),\"ДЗ\",IF(D94=4,\"-\",IF(J86=1,\"Т\",IF(J87=1,\"ДШ\",IF(I74=TRUE,\"ДЗ\",\"-\")))))))","v":"-"},"-",{"$f":"IF(J91>25,\"ОШИБКА\",IF(D94=1,\"-\",IF(D94=3,\"-\",IF(F94=\"ДЗ\",\"-\",IF(D94=4,\"-\",IF(I74=TRUE,\"ДЗ\",IF(J88=1,\"ДШ\",\"-\")))))))","v":"-"}]
[{"$f":"IF(AND(D94=3,J86=1,F94=\"ДЗ\"),\"+БПТ-01\",IF(AND(D94=3,J87=1,F94=\"ДЗ\"),\"+БПТ-ДШ\",IF(AND(D94=4,I74=TRUE),\"+МИКО-ДЗ\",\"-\")))","v":"-"},null,{"$f":"IF(AND(D94=4,J87=1),\"+БПТ-ДШ\",IF(AND(D94=4,J86=1),\"+БПТ-01\",\"-\"))","v":"-"}]
[]
["Укажите количество и длину оптоволоконных датчиков дуговой защиты:",null,null,null,"кол-во",null,null,"длина датчика"]
[null,null,null,null,null,"шт.","по",null,"м"]
[null,null,null,null,null,"шт.","по",null,"м"]
[null,null,null,null,null,"шт.","по",null,"м"]
[null,null,null,null,null,"шт.","по",null,"м"]
[null,null,null,null,null,"шт.","по",null,"м"]
[null,null,null,null,null,"шт.","по",null,"м"]
[]
["Наименование грузополучателя"]
[]
[]
["ИНН/КПП грузополучателя "]
[]
["Адрес грузополучателя"]
[]
["ФИО, телефон и эл. почта контактного лица грузополучателя, ответственного за прием груза"]
[]
[]
["Приложения:"]
[]
[]
[]
["СОГЛАСОВАНО:"]
[]
[]
["СО СТОРОНЫ ЗАКАЗЧИКА",null,null,null,null,"СО СТОРОНЫ ПРОИЗВОДИТЕЛЯ"]
[]
[]
["название организации, должность",null,null,null,null,"название организации, должность"]
[]
["подпись, ФИО, дата",null,null,null,null,"подпись, ФИО, дата"]

{"sheet":"Лист2","index":1,"n_rows":36,"n_cols":16,"rows_kept":36,"cut":false,"hidden":false,"merged":[]}
[]
[]
[]
[]
[]
[]
[]
[]
[]
[]
[]
[]
[]
[]
[]
[]
[]
[]
[]
[]
[]
[]
[]
[]
[]
[]
[]
[]
[]
[]
[]
[]
[null,null,null,null,null,null,null,null,null,null,null,null,"Т",1,{"$f":"IF(Лист1!D56=N33,M33,IF(Лист1!D56=N34,M33,IF(Лист1!D56=N35,M33, \" \")))","v":"Т"}]
[null,null,null,null,null,null,null,null,null,null,null,null,"ДШ",2,{"$f":"IF(Лист1!D56=N33,M34,IF(Лист1!D56=N34,M34,IF(Лист1!D56=N35,M34, \" \")))","v":"ДШ"},{"$f":"IF(Лист1!F56=\"ДЗ\",\" \", IF(Лист1!D56=N34,M35, IF(Лист1!D56=N35,\"\", \" \")))","v":" "}]
[null,null,null,null,null,null,null,null,null,null,null,null,"ДЗ",3,{"$f":"IF(Лист1!D56=N33,\"\",IF(Лист1!D56=N34,M35,IF(Лист1!D56=N35,M35, \" \")))","v":""}]
[null,null,null,null,null,null,null,null,null,null,null,null,null,4]